[Event "FIDE WSCC 65 2022"]
[Site "Assisi"]
[Date "2022.11.22"]
[Round "7.12"]
[White "Cocozza, Mario"]
[Black "Madebrink, Lars"]
[Result "0-1"]
[ECO "B84"]
[WhiteElo "2298"]
[BlackElo "2084"]
[Annotator "TA"]
[PlyCount "70"]
[EventDate "2022.11.14"]
[EventType "swiss"]
[EventCountry "ITA"]
[SourceTitle "playchess.com"]
[Source "ChessBase"]
[SourceQuality "1"]
[TimeControl "40/5400+30:1800+30"]

{[%evp 15,70,21,38,39,52,47,42,20,60,39,59,-6,-6,-28,-23,-18,0,0,0,-14,-14,-28,-28,-35,-30,-36,-31,-57,-58,-51,-27,-23,-26,-25,-26,-41,160,-22,35,-53,-11,-63,0,-54,-52,-37,-15,-15,0,-26,0,-170,-137,-168,-175,-2367,-1370]} 1. e4 {[%emt 0:00:07]} c5 {[%emt 0:00:06]} 2. Nf3 {[%emt 0:00:07]} d6 {[%emt 0:00:06]} 3. d4 {[%emt 0:00:07]} cxd4 {[%emt 0:00:05]} 4. Nxd4 {[%emt 0:00:10]} Nf6 {[%emt 0:00:05]} 5. Nc3 {[%emt 0:00:06]} a6 {[%emt 0:00:12]} 6. Be2 {[%emt 0:00:15]} e6 {[%emt 0:00:53]} 7. O-O {[%emt 0:00:25] 7.Be3 is the fancy move.} Qc7 {[%emt 0:00:31]} 8. f4 {[%emt 0:01:19][%cal Bf2f4,Bf4e5][%mdl 32]} b5 {[%emt 0:01:19]} 9. e5 {[%emt 0:33:01] B84: Sicilian Scheveningen: 6 Be2 a6, lines without early Be3.} dxe5 {[%emt 0:00:57]} 10. fxe5 {[%emt 0:00:09]} Nfd7 {[%emt 0:00:23]} 11. Kh1 {[%emt 0:01:49] White is slightly better.} Bb7 {[%emt 0:04:31]} 12. Bf3 {[%emt 0:06:18] [#] Bg5 is the strong threat.} (12. Bg4 {is more complex.} Bc5 13. Nxe6 fxe6 14. Bxe6 Rf8 15. Nd5) 12... Nc6 $1 {[%emt 0:03:26]} 13. Bf4 {[%emt 0:17:48]} (13. Bxc6 $1 $14 Bxc6 14. Qh5) 13... Nxd4 $11 {[%emt 0:16:04]} ({But not} 13... Ncxe5 14. Qe2 Bxf3 15. Nxf3 $16) 14. Bxb7 {[%emt 0:04:40]} (14. Qxd4 $5 Be7 15. Bxb7 Qxb7 16. Ne4 $11) 14... Qxb7 {[%emt 0:00:37]} 15. Qxd4 {[%emt 0:00:04] [#]} Bc5 $146 {[%emt 0:08:00] Against a4} ({Predecessor:} 15... Be7 16. Ne4 O-O 17. Bg5 Bxg5 18. Nxg5 h6 19. Ne4 Qd5 20. Qxd5 exd5 21. Nc3 d4 {0-1 (38) Sidhant,M (2267)-David,A (2569) Chennai 2017}) 16. Qd3 {[%emt 0:04:33]} O-O {[%emt 0:04:02]} 17. Ne4 {[%emt 0:00:47]} (17. Rad1 $5 {[%cal Rd3d7]} Nb6 18. Ne4 $14) 17... Be7 $1 {[%emt 0:00:22]} 18. Rae1 {[%emt 0:01:02]} (18. Qf3 {simplifies} Nc5 19. Nxc5 Qxf3 20. Rxf3 Bxc5 21. Rd3) 18... Nc5 {[%emt 0:01:13]} 19. Nxc5 {[%emt 0:00:28]} Bxc5 {[%emt 0:00:04]} 20. Qg3 {[%emt 0:01:04] aiming for Bh6.} Rfd8 {[%emt 0:04:02]} 21. h4 {[%emt 0:05:34][%cal Bh2h4,Bh4h5][%mdl 32]} Bf8 {[%emt 0:07:51]} 22. Bg5 {[%emt 0:06:27]} Rd4 {[%emt 0:01:43]} 23. h5 {[%emt 0:01:45]} Rc8 {[%emt 0:03:22]} 24. h6 {[%emt 0:06:56] Hoping for c3.} g6 {[%emt 0:03:20]} ({Reject} 24... Rxc2 $6 25. hxg7 Bc5 26. Rf3 $15) 25. c3 {[%emt 0:01:32]} Re4 {[%emt 0:01:44] [#]} (25... Rd5 $15 {stays ahead.}) 26. Rd1 $2 {[%emt 0:02:56]} (26. Qf3 $1 $16 Rxe1 27. Qxb7 Rxf1+ 28. Kh2) 26... Qc7 {[%emt 0:03:18]} (26... Re2 $11) 27. Bf6 {[%emt 0:04:31]} (27. Qf3 $14 Rc4 28. Rd3) 27... Bxh6 {[%emt 0:00:40]} (27... Re2 $5 {[%cal Re2b2]} 28. Rf2 Rxf2 29. Qxf2 Bxh6 $15) 28. Rd6 {[%emt 0:00:00]} (28. Rd3 $11) 28... Bf8 {[%emt 0:02:35]} ({Black should play} 28... b4 $15) 29. Qd3 {[%emt 0:00:00]} (29. Rfd1 $11) 29... Rg4 {[%emt 0:01:37]} (29... Rc4 $5 {[%cal Rf8d6]} 30. Rd7 Qc6 $15) 30. Qf3 {[%emt 0:00:00]} h5 {[%emt 0:00:46]} (30... Bxd6 $2 31. exd6 Qxd6 32. Qxg4 $18) (30... Rc4 $5 {[%cal Rf8d6]} 31. Rxa6 Ra4 32. Rxa4 bxa4 $11) 31. Rxa6 {[%emt 0:00:00]} Qc4 {[%emt 0:02:58]} 32. Rd1 {[%emt 0:00:06]} b4 {[%emt 0:05:38]} 33. Qd3 $2 {[%emt 0:00:50]} (33. Ra8 $1 $11 {and White has nothing to worry.}) 33... bxc3 {[%emt 0:01:48] ( -> ...Qxd3)} 34. bxc3 {[%emt 0:00:24]} Qf4 {[%emt 0:01:52] Threatens to win with ...g5.} (34... Qxc3 $2 35. Qxc3 Rxc3 36. Ra8 $18) 35. Ra7 $2 {[%emt 0:00:28]} (35. Qf3) 35... Qf2 {[%emt 0:01:13] Weighted Error Value: White=0.52/Black=0.26 (precise)} 0-1

[Event "FIDE WSCC 65 2022"]
[Site "Assisi"]
[Date "2022.11.22"]
[Round "7.13"]
[White "Sideifzade, Fikret"]
[Black "Strutinskaia, Galina"]
[Result "1/2-1/2"]
[ECO "D44"]
[WhiteElo "2391"]
[BlackElo "2137"]
[Annotator "TA"]
[PlyCount "90"]
[EventDate "2022.11.14"]
[EventType "swiss"]
[EventCountry "ITA"]
[SourceTitle "playchess.com"]
[Source "ChessBase"]
[SourceQuality "1"]
[TimeControl "40/5400+30:1800+30"]

{[%evp 25,90,121,103,87,139,110,92,86,94,102,77,97,97,38,51,56,69,72,78,12,251,231,209,218,933,385,398,399,389,402,575,575,1080,1128,884,445,1102,402,884,765,757,91,91,91,91,91,91,91,91,91,91,91,91,91,91,91,91,91,91,52,91,91,91,91,91,91,91]} 1. d4 {[%emt 0:00:04]} Nf6 {[%emt 0:00:25]} 2. Nf3 {[%emt 0:00:16]} e6 {[%emt 0:00:34]} 3. c4 {[%emt 0:00:11]} d5 {[%emt 0:00:10]} 4. Nc3 {[%emt 0:00:25]} c6 {[%emt 0:00:06]} 5. Bg5 {[%emt 0:03:52]} dxc4 {[%emt 0:00:09]} 6. e4 {[%emt 0:01:01]} b5 {[%emt 0:00:06]} 7. e5 {[%emt 0:00:10]} h6 {[%emt 0:00:07]} 8. Bh4 {[%emt 0:00:16]} g5 {[%emt 0:00:07]} 9. Nxg5 {[%emt 0:00:53]} hxg5 {[%emt 0:00:18]} 10. Bxg5 {[%emt 0:00:04]} Nbd7 {[%emt 0:00:33]} 11. g3 {[%emt 0:01:25]} Bb7 {[%emt 0:03:49]} 12. Bg2 {[%emt 0:01:04]} Qa5 {[%emt 0:03:51]} 13. exf6 {[%emt 0:04:45]} O-O-O {[%emt 0:07:25]} 14. O-O {[%emt 0:11:52] D44: Semi-Slav: Botvinnik System.} Nc5 {[%emt 0:06:14] [#]} 15. Qc2 $146 {[%emt 0:06:33]} ({Predecessor:} 15. Be3 Nd3 16. Qe2 c5 17. Bxb7+ Kxb7 18. dxc5 Bxc5 19. Bxc5 Nxc5 20. a4 b4 21. Nb5 Nd3 {1-0 (41) Sobek,J (2221)-Vesely,L (2217) Czech Republic 2016}) 15... Rxd4 {[%emt 0:02:34]} 16. Be3 {[%emt 0:13:31]} Rd7 {[%emt 0:15:31]} 17. Ne4 {[%emt 0:08:02]} Nxe4 {[%emt 0:09:02]} 18. Bxe4 {[%emt 0:02:31]} Bd6 {[%emt 0:03:35]} 19. Kg2 {[%emt 0:07:48]} (19. a4 $16) 19... Be5 $14 {[%emt 0:05:05]} 20. a4 {[%emt 0:01:42]} a6 {[%emt 0:03:43]} 21. axb5 {[%emt 0:06:41]} Qxb5 {[%emt 0:00:11]} 22. Ra4 {[%emt 0:00:11]} ({White should try} 22. Rfd1 $16) 22... Qxb2 $2 {[%emt 0:04:47]} (22... c3 $1 $11 {and Black has nothing to worry.}) 23. Qxc4 $18 {[%emt 0:01:20] [#] And now Rb1 would win.} Qb5 {[%emt 0:00:45]} 24. Rb1 {[%emt 0:08:26] The board is on fire.} Bxf6 $2 {[%emt 0:04:49]} (24... Qxc4 25. Rxc4 Rd6) 25. Rxb5 {[%emt 0:01:41]} (25. Qc2 $142) 25... axb5 {[%emt 0:00:02]} 26. Qc5 {[%emt 0:01:02]} bxa4 {[%emt 0:00:43]} 27. Bxc6 {[%emt 0:00:25]} Bxc6+ {[%emt 0:08:38]} (27... Rhd8 {is a better defense.} 28. Bxb7+ Kxb7 29. Qa7+ Kc8 30. Qa8+ Kc7 31. Qxa4 Rd6 32. Qa7+ Kc8 33. Qxf7 e5) 28. Qxc6+ {[%emt 0:00:11]} Kd8 {[%emt 0:00:03]} 29. Qa8+ {[%emt 0:02:39]} Kc7 {[%emt 0:00:14]} 30. Qxa4 {[%emt 0:01:40]} Kd8 {[%emt 0:03:27]} (30... Rh5 $142 31. Bb6+ Kd6 32. Qa3+ Kc6) 31. Bg5 {[%emt 0:08:48]} (31. Qa8+ $142 Kc7 32. Qa5+ Kc8 33. Bf4) 31... Rxh2+ {[%emt 0:00:17]} (31... Bxg5 $142 32. Qa8+ Ke7 33. Qxh8 Bf6) 32. Kxh2 {[%emt 0:00:05]} Bxg5 {[%emt 0:00:05][%mdl 4096] Endgame KQ-KRB} 33. f4 $2 {[%emt 0:00:11]} (33. Qa5+ $18 {is the precise move to win.} Ke8 34. Qxg5) 33... Bf6 $16 {[%emt 0:00:40]} 34. Qb4 {[%emt 0:01:00]} Ke8 {[%emt 0:00:23] Against Qf8+} 35. g4 {[%emt 0:00:06]} Rd4 {[%emt 0:02:28]} 36. Qb8+ {[%emt 0:00:48]} Rd8 {[%emt 0:00:42]} 37. Qb5+ {[%emt 0:00:05]} Kf8 {[%emt 0:00:21]} 38. Kg3 {[%emt 0:00:16]} Rd5 {[%emt 0:01:19]} 39. Qb4+ {[%emt 0:00:14]} Kg7 {[%emt 0:02:34]} 40. Kf3 {[%emt 0:00:33]} Rd3+ {[%emt 0:00:34]} 41. Ke2 {[%emt 0:32:19]} Rd5 {[%emt 0:32:05]} 42. Ke3 {[%emt 0:00:10]} Kg8 {[%emt 0:00:16]} 43. Qb7 {[%emt 0:00:52] White is better.} Bd4+ {[%emt 0:03:40]} 44. Ke4 {[%emt 0:00:08][%cal Ob7d5] [#] Intending Qxd5! and mate.} Bf6 {[%emt 0:00:31]} 45. Qc6 {[%emt 0:01:24]} Kg7 {[%emt 0:02:30] Weighted Error Value: White=0.64/Black=0.30} 1/2-1/2

[Event "FIDE WSCC 65 2022"]
[Site "Assisi"]
[Date "2022.11.22"]
[Round "7.14"]
[White "Frick, Christoph"]
[Black "Roos, Louis"]
[Result "0-1"]
[ECO "A45"]
[WhiteElo "2118"]
[BlackElo "2293"]
[Annotator "TA"]
[PlyCount "162"]
[EventDate "2022.11.14"]
[EventType "swiss"]
[EventCountry "ITA"]
[SourceTitle "playchess.com"]
[Source "ChessBase"]
[SourceQuality "1"]
[TimeControl "40/5400+30:1800+30"]

{[%evp 9,162,21,31,18,10,11,8,-44,-37,-68,-49,-79,-68,-106,-99,-104,-62,-69,-21,-60,-50,-59,-45,-47,-32,-43,-29,-70,-34,-96,-87,-132,-121,-129,-126,-137,-145,-138,-135,-189,-147,-168,-112,-154,-91,-106,-99,-105,-104,-95,-116,-127,-86,-164,-150,-175,-155,-163,-125,-150,-110,-69,-76,-79,-72,-200,-102,-108,-103,-514,-464,-452,-421,-700,-708,-807,-156,-156,-153,-193,-191,-197,-193,-194,0,-169,-167,-179,-174,-164,-147,-219,-183,-193,-182,-243,-226,-233,-231,-337,-114,-120,-110,-115,-116,-114,-91,-106,-113,-143,-96,-121,-18,-137,-125,-139,-139,-123,-140,-151,-149,-135,-88,-92,-32,-104,-74,-430,-142,-294,-161,-194,-142,-1325,-1314,-1175,-1172,-631,-8,-8,-8,-29956,-5551,-29962,-29965,-29962,-29963,-29965,-29964,-29960,-29960,-29979,-29980,-29983,-265]} 1. d4 {[%emt 0:00:02]} Nf6 {[%emt 0:01:41]} 2. Bg5 {[%emt 0:00:06]} Ne4 {[%emt 0:07:13]} 3. Bf4 {[%emt 0:00:11]} d6 {[%emt 0:01:10]} 4. f3 {[%emt 0:02:42]} Nf6 {[%emt 0:00:47]} 5. e4 {[%emt 0:00:08]} Nbd7 {[%emt 0:08:38]} 6. Nc3 {[%emt 0:04:18] A45: Trompowsky Attack.} e5 {[%emt 0:03:11]} 7. Bg3 {[%emt 0:04:41]} c6 {[%emt 0:02:33] [#]} 8. dxe5 $146 {[%emt 0:04:55]} (8. a3 $11) ({Predecessor:} 8. Qd2 Be7 9. O-O-O O-O 10. Nh3 a5 11. f4 Nh5 12. Be2 exf4 13. Nxf4 Nxg3 14. hxg3 {1-0 (31) Svoboda,M (2250)-Bargel,M (2155) Czech Republic 1999}) 8... dxe5 $15 {[%emt 0:00:15]} 9. Bc4 {[%emt 0:02:22]} Bc5 {[%emt 0:12:14]} 10. Nh3 {[%emt 0:06:58]} O-O {[%emt 0:07:04]} 11. Qe2 {[%emt 0:04:26]} b5 {[%emt 0:03:08]} 12. Bd3 {[%emt 0:08:04]} Re8 {[%emt 0:02:27]} 13. Bf2 {[%emt 0:13:10]} a6 {[%emt 0:03:39]} (13... Bd4 $15 14. a4 Nc5 15. axb5 Bxh3 16. gxh3 Bxf2+ 17. Qxf2 (17. Kxf2 $2 Nh5 $19) 17... Nxd3+ 18. cxd3 cxb5) 14. Nd1 {[%emt 0:03:13]} Bf8 {[%emt 0:01:00]} 15. Be3 {[%emt 0:04:46]} Nc5 {[%emt 0:00:49][%cal Bd7c5,Bc5e6,Be6f4][%mdl 32]} 16. Nhf2 {[%emt 0:00:14]} Be6 {[%emt 0:02:40]} 17. O-O {[%emt 0:01:22]} Qc7 {[%emt 0:00:14]} 18. Kh1 {[%emt 0:01:02]} Rad8 {[%emt 0:00:47]} 19. g4 {[%emt 0:00:46]} ({White should play} 19. Bd2 $15) 19... Bc8 $17 {[%emt 0:05:29]} 20. h4 {[%emt 0:05:37]} Ne6 {[%emt 0:04:02]} 21. Nh3 {[%emt 0:00:16]} c5 {[%emt 0:01:11]} 22. c3 {[%emt 0:03:39]} Nf4 {[%emt 0:01:42]} 23. Nxf4 {[%emt 0:02:06]} exf4 {[%emt 0:00:08]} 24. Bg1 {[%emt 0:02:13]} (24. Bc1 $17) 24... Nd7 {[%emt 0:02:44]} 25. Bc2 {[%emt 0:03:04]} Bd6 {[%emt 0:00:28]} (25... h5 $1 $19 26. g5 Ne5) 26. Nf2 {[%emt 0:00:30]} Nf8 {[%emt 0:00:27]} ({Better is} 26... Nb6 27. a4 Nc4) 27. Rad1 {[%emt 0:03:15]} Be6 {[%emt 0:01:13]} 28. Bb3 {[%emt 0:02:13]} c4 {[%emt 0:06:52]} 29. Bc2 {[%emt 0:00:21]} Be5 {[%emt 0:01:21][%cal Oh7h5]} 30. Nh3 {[%emt 0:01:34]} h5 {[%emt 0:02:07]} 31. Ng5 {[%emt 0:00:23]} (31. Bd4 $17) 31... Bc8 $19 {[%emt 0:02:07]} 32. Bd4 {[%emt 0:04:45]} Qe7 {[%emt 0:05:06]} 33. Rg1 {[%emt 0:01:24]} (33. gxh5 Bxd4 34. cxd4 (34. Rxd4 $2 f6 $19) 34... f6) 33... hxg4 {[%emt 0:06:09]} 34. fxg4 {[%emt 0:00:13]} Ng6 {[%emt 0:00:42]} 35. Qf2 {[%emt 0:00:45]} Bb7 {[%emt 0:01:30]} 36. Rde1 {[%emt 0:00:39]} Bf6 {[%emt 0:03:08]} 37. Bc5 {[%emt 0:02:28]} (37. Bxf6 $17 Qxf6 38. Nf3) 37... Qd7 {[%emt 0:00:15]} (37... Qe5 $1 $19 38. Nf3 Bxh4 $1 39. Nxh4 Nxh4) 38. Nf3 $17 {[%emt 0:02:50]} Ne5 {[%emt 0:01:49]} 39. g5 {[%emt 0:02:39][%mdl 8192]} (39. Nxe5 $17 {is tougher.} Bxe5 40. Bb6) 39... Qh3+ $19 {[%emt 0:00:42]} 40. Nh2 {[%emt 0:00:18]} Be7 {[%emt 0:00:39]} 41. Bxe7 {[%emt 0:08:13]} (41. Bd4 $142 Nd3 42. Bxd3 cxd3 43. Qf1 Qxh4 44. Rg4) 41... Rxe7 {[%emt 0:00:59]} 42. Qxf4 {[%emt 0:00:38]} Ng6 $2 {[%emt 0:10:03]} (42... Nd3 $19 {( -> ...Rxe4)} 43. Rg3 Nxf4 44. Rxh3 Nxh3) 43. Qg4 {[%emt 0:06:38]} Qxh4 {[%emt 0:01:04] Black has more active pieces.} 44. Re2 {[%emt 0:01:40] Against Rd2} Qxg4 {[%emt 0:01:30]} 45. Rxg4 {[%emt 0:00:31]} Ne5 {[%emt 0:00:24] Inhibits Nf3.} 46. Rh4 {[%emt 0:02:04]} Ng6 {[%emt 0:08:19][%cal Be5g6,Bg6f4,Bf4d3][%mdl 32]} 47. Rg4 {[%emt 0:01:01]} Bc8 $1 {[%emt 0:00:21]} 48. Rg3 {[%emt 0:01:39]} Nf4 $1 $36 {[%emt 0:00:56][%mdl 2048] Black has strong initiative.} 49. Rf2 {[%emt 0:01:08]} Nd3 {[%emt 0:00:27]} 50. Re2 {[%emt 0:04:10]} (50. Bxd3 $17 cxd3 51. Rd2) 50... Bb7 {[%emt 0:01:53]} 51. Kg1 {[%emt 0:03:26]} Rxe4 {[%emt 0:04:41]} 52. Rxe4 {[%emt 0:01:35]} (52. Rd2 {is a better defense.}) 52... Bxe4 {[%emt 0:00:11]} 53. Re3 {[%emt 0:02:32]} Bg6 {[%emt 0:00:29]} 54. b4 {[%emt 0:00:35] [#]} (54. b3 $142) 54... cxb3 $2 {[%emt 0:01:45]} (54... Nxb4 $1 $19 {[%mdl 512] and Black stays clearly on top.} 55. Bxg6 Nd5 56. Bxf7+ Kxf7 57. Rf3+ Kg6) 55. axb3 $17 {[%emt 0:01:26]} Nf4 {[%emt 0:01:09]} 56. Bxg6 {[%emt 0:00:29]} Nxg6 {[%emt 0:00:06][%mdl 4096] Endgame KRN-KRN} 57. Nf3 {[%emt 0:00:08]} a5 {[%emt 0:00:22]} 58. Nd4 {[%emt 0:01:29]} Rd5 {[%emt 0:01:02]} 59. Nf3 {[%emt 0:00:33]} Rc5 {[%emt 0:00:44]} ({Black should try} 59... Kf8 60. Kf2 Rf5) 60. Kf2 {[%emt 0:01:19]} a4 {[%emt 0:00:48]} (60... Kf8 $17 {Hoping for ...a4.} 61. Ke2 a4 62. bxa4 bxa4) 61. bxa4 {[%emt 0:01:25]} (61. b4 $1 $11 Rd5 62. Re8+ Kh7 63. Ke3) 61... bxa4 {[%emt 0:00:14]} 62. Re8+ {[%emt 0:00:24]} Kh7 {[%emt 0:00:29]} 63. Ra8 {[%emt 0:00:02]} Ne5 $1 {[%emt 0:01:28] And now ...Nxf3 would win.} ({Not} 63... Rxc3 64. Rxa4 Rc7 65. Ke3 $15) 64. Nxe5 {[%emt 0:02:26]} Rxe5 {[%emt 0:00:10]} 65. Rxa4 {[%emt 0:00:09]} Rxg5 {[%emt 0:00:09] KR-KR} (65... Kg6 $142 66. Ra7 Rxg5) 66. c4 {[%emt 0:00:49]} Rg4 {[%emt 0:00:53]} (66... Re5 $1 $17) 67. Ra7 {[%emt 0:00:31]} (67. Ke3 $1 $15) 67... f5 {[%emt 0:00:45]} 68. Rc7 $2 {[%emt 0:00:15][%mdl 8192]} (68. c5 $17) 68... Re4 $2 {[%emt 0:00:39]} (68... Kh6 $1 $19 {is more deadly.} 69. c5 g5 70. Rc6+ Kh5) 69. Kf3 $2 {[%emt 0:00:33]} (69. Rc6 $17 {only move.}) 69... Kg6 {[%emt 0:01:12]} (69... Kh6 $142 $1 70. Rc5 Kg6) 70. c5 $19 {[%emt 0:00:33]} Kf6 {[%emt 0:00:25] ...g5 is the strong threat.} 71. Rc8 $2 {[%emt 0:00:18][%mdl 8192]} (71. Rc6+ $17 Kf7 72. Rd6) 71... g5 $1 {[%emt 0:01:01][%cal Bg7g5,Bg5g4][%mdl 32] Strongly threatening ...g4+.} ({Inferior is} 71... Rc4 72. Ke3 $15) 72. c6 {[%emt 0:00:23] [#]} g4+ $1 {[%emt 0:00:29]} ({And not} 72... Rc4 73. Ke3 $15) 73. Kf2 {[%emt 0:00:21] [#]} Rc4 $2 {[%emt 0:00:08]} (73... Ke5 $1 $19 {[%cal Re5f4] Threatens to win with ...Kf4.} 74. c7 Kd6) 74. c7 $11 {[%emt 0:01:35] Intending Rf8+ and mate.} Kg7 {[%emt 0:00:08] Against Rf8} (74... Ke6 $5 75. Ke3 $8 Ke7 $11) 75. Kg2 $2 {[%emt 0:00:37][%mdl 8192]} (75. Kg3 $11) 75... Rc3 {[%emt 0:00:20]} (75... f4 $142 76. Ra8 Rc2+ 77. Kf1 Rxc7 78. Ra6 Rc1+ 79. Kf2 Rc2+ 80. Kg1 f3 81. Ra4 Rg2+ 82. Kh1 Rg3 83. Kh2 Rh3+ 84. Kg1 Rh4 85. Ra3 Kf6 86. Kf2 Rh2+ 87. Kg3 Rg2+ 88. Kh4 f2 89. Ra8 Ke7 90. Ra7+ Ke6 91. Ra6+ Ke5 92. Ra5+ Kd4 93. Rf5 Ke3 94. Rf7 Ke2 95. Kh5 f1=Q 96. Kg6 Qb1+ 97. Kg5 g3 98. Re7+ Kf1 99. Re3 Qc1 100. Kf4 Re2 101. Ke5 Rxe3+ 102. Kd5 g2 103. Kd4 g1=Q 104. Kd5 Qh1+ 105. Kd6 Qhc6#) 76. Kf2 {[%emt 0:00:18]} f4 {[%emt 0:00:27] Black mates.} 77. Kf1 {[%emt 0:00:17]} Rc2 {[%emt 0:00:18]} 78. Kg1 {[%emt 0:01:12]} g3 {[%emt 0:00:40]} (78... Kf7 $2 79. Rh8 $18) 79. Ra8 {[%emt 0:00:22]} Rxc7 {[%emt 0:00:14]} 80. Kg2 {[%emt 0:00:29]} Rc2+ {[%emt 0:00:16]} 81. Kh3 {[%emt 0:00:14]} Rh2+ {[%emt 0:00:26] Weighted Error Value: White=0.43/Black=0.32} 0-1

[Event "FIDE WSCC 65 2022"]
[Site "Assisi"]
[Date "2022.11.22"]
[Round "7.15"]
[White "Lanc, Alois"]
[Black "Taylor, Timothy"]
[Result "1-0"]
[ECO "C10"]
[WhiteElo "2268"]
[BlackElo "2118"]
[Annotator "TA"]
[PlyCount "55"]
[EventDate "2022.11.14"]
[EventType "swiss"]
[EventCountry "ITA"]
[SourceTitle "playchess.com"]
[Source "ChessBase"]
[SourceQuality "1"]
[TimeControl "40/5400+30:1800+30"]

{[%evp 21,55,0,14,0,0,-11,19,0,0,0,0,0,0,0,10,0,0,0,6,0,8,1,12,15,37,26,39,25,437,435,497,494,530,470,4802,4794]} 1. e4 {[%emt 0:00:27]} e6 {[%emt 0:00:04]} 2. d4 {[%emt 0:00:17]} d5 {[%emt 0:00:04]} 3. Nc3 {[%emt 0:00:20]} dxe4 {[%emt 0:00:04]} 4. Nxe4 {[%emt 0:00:06]} Nd7 {[%emt 0:00:03]} 5. Nf3 {[%emt 0:00:52]} Ngf6 {[%emt 0:00:05]} 6. Bd3 {[%emt 0:03:04]} c5 {[%emt 0:00:19]} 7. Nxf6+ {[%emt 0:10:38]} Nxf6 {[%emt 0:00:13]} 8. dxc5 {[%emt 0:07:14]} Bxc5 {[%emt 0:00:11]} 9. O-O {[%emt 0:00:16]} O-O {[%emt 0:03:46]} 10. Qe2 {[%emt 0:07:15]} b6 {[%emt 0:00:20]} 11. Bg5 {[%emt 0:00:13]} Bb7 {[%emt 0:00:10]} 12. Rad1 {[%emt 0:01:35][%cal Od3h7] C10: French with 3 Nc3: Unusual Black 3rd moves and 3...dxe4.} Qc7 {[%emt 0:00:08]} 13. Ne5 {[%emt 0:10:05]} Rad8 {[%emt 0:11:52]} 14. Bxf6 {[%emt 0:04:55] The position is equal.} (14. Rfe1 $5 {[%cal Rg5f6]} Be7 15. Qe3 $11) 14... gxf6 {[%emt 0:00:03]} 15. Qh5 {[%emt 0:00:43][%csl Gd3][%cal Rh5h7]} f5 {[%emt 0:01:28] [#]} 16. Bxf5 $146 {[%emt 0:01:56] The board is on fire.} ({Predecessor:} 16. Qg5+ Kh8 17. Qf6+ Kg8 18. Qg5+ Kh8 19. Qf6+ Kg8 {½-½ (19) Feher,G (2345)-Farkas,R (2343) Hungary 2018}) 16... exf5 {[%emt 0:00:41]} (16... Qxe5 $2 17. Qxh7#) 17. Qg5+ {[%emt 0:00:19]} Kh8 {[%emt 0:00:03] aiming for ...f6.} 18. Qf6+ $40 {[%emt 0:10:53][%mdl 128] Black needs to defend precisely.} Kg8 {[%emt 0:00:06][%cal Oc5f2]} 19. Qg5+ {[%emt 0:00:06]} Kh8 {[%emt 0:00:05] [#] Hoping for ...f6.} 20. Nxf7+ {[%emt 0:00:59][%mdl 64]} Qxf7 {[%emt 0:03:26]} 21. Rxd8 {[%emt 0:00:06]} Be7 {[%emt 0:12:30] This pair of bishops is nice.} (21... Qxa2 $2 22. Rd7 Qg8 23. Qxg8+ Kxg8 24. Rxb7 $18) 22. Rxf8+ {[%emt 0:00:07]} Qxf8 {[%emt 0:01:02]} 23. Qf4 {[%emt 0:00:25] Threatens to win with Qc7.} Be4 {[%emt 0:08:25]} 24. f3 {[%emt 0:06:52]} Bxc2 {[%emt 0:09:59][%mdl 8192] [#] This move loses the game for Black.} ({Don't do} 24... Bc5+ 25. Kh1 Bc6 26. Qe5+ Qg7 27. Qxf5 $16) (24... Bd6 $1 $11 {and Black is okay.} 25. Qd2 Bc5+ 26. Kh1 Bc6) 25. Qc4 $1 $18 {[%emt 0:01:42] White is clearly winning.} Bd6 {[%emt 0:05:29]} (25... Bc5+ $2 26. Kh1 $18) 26. Qxc2 {[%emt 0:00:30]} Qh6 {[%emt 0:00:05]} 27. f4 {[%emt 0:01:52]} Bxf4 {[%emt 0:00:05]} (27... Qe6 $142 28. Qc3+ Kg8) 28. Qc3+ {[%emt 0:00:10] Weighted Error Value: White=0.09 (flawless) /Black=0.62} ({Worse is} 28. Qxf5 Qxh2+ 29. Kf2 Qg3+ 30. Kg1 Qh2+ 31. Kf2 Qg3+ 32. Kg1 Qh2+ $11) 1-0